bitfinex/quotes_ETHUSD_20250115
["timestamp","ask_amount","ask_price","bid_price","bid_amount"]
[1736980872564,0.4569182,3429.3,3428.7,0.06941002]
[1736980872715,2.1,3429.8,3429.1,0.7563]
[1736980873057,2.1,3429.8,3429.5,0.7563]
[1736980873058,0.169,3429.7,3429.5,0.7563]
[1736980873465,0.169,3429.7,3429.6,0.06883626]
[1736980873758,0.169,3429.7,3429.2,0.7563]
[1736980873918,0.169,3429.7,3429.3,0.06903169]
[1736980874123,0.169,3429.7,3429.3,1.29436991]
[1736980874739,0.169,3429.6,3429.4,0.20506699]
[1736980874920,0.169,3429.6,3429.5,0.0689014]
[1736980875132,0.169,3429.6,3429.2,0.7563]
[1736980875337,0.169,3429.6,3429.3,0.06880422]
[1736980875541,0.169,3429.6,3429.0,0.7563]
[1736980875863,2.9159,3429.5,3429.1,0.06863964]
[1736980876855,2.9159,3429.5,3428.8,2.18674304]
[1736980877064,2.9159,3429.5,3429.2,0.06857449]
[1736980877264,0.169,3429.6,3428.8,1.98163822]
[1736980877482,0.169,3429.6,3429.3,0.06850934]
[1736980877483,2.91597,3429.4,3429.3,0.06850934]
[1736980877779,2.91597,3429.4,3428.8,0.7563]
[1736980877983,2.91597,3429.4,3428.9,0.06876997]
[1736980878966,3.08481,3429.6,3428.9,0.06876997]
[1736980879575,3.08481,3429.6,3428.9,0.44293097]
[1736980879965,2.91581,3429.6,3428.9,0.44293097]
[1736980880280,0.169,3429.5,3428.9,0.44293097]
[1736980887319,0.169,3429.5,3429.0,0.7669]
[1736980887626,0.169,3429.5,3429.1,0.06870702]
[1736980888929,2.1,3429.8,3429.2,0.7669]
[1736980889095,2.1,3429.8,3429.1,0.48132982]
[1736980889096,0.169,3429.7,3429.4,0.7669]
[1736980889298,2.1,3429.8,3429.7,3.6826]
[1736980889497,2.269,3429.8,3429.7,3.6826]
[1736980889703,2.269,3429.8,3429.7,4.99628964]
[1736980889990,2.269,3429.8,3429.7,2.08058964]
[1736980890523,2.269,3429.8,3429.7,0.83520351]
[1736980891188,2.269,3429.8,3429.7,0.06830351]
[1736980891396,2.269,3429.8,3429.4,0.7669]
[1736980891610,2.269,3429.8,3429.5,0.06824427]
[1736980897474,2.269,3429.8,3429.5,1.29274437]
[1736980897630,2.269,3429.8,3429.6,0.49756844]
[1736980897830,2.269,3429.8,3429.6,0.56313858]
[1736980902068,2.269,3429.8,3429.6,2.98134014]
[1736980902228,2.269,3429.8,3429.6,0.06557014]
[1736980902431,2.269,3429.8,3429.7,2.9157]
[1736980902627,2.269,3429.8,3429.7,4.971564]
[1736980906177,2.1,3429.8,3429.7,4.971564]
[1736980906492,2.269,3429.8,3429.7,5.4687204]
[1736980913304,0.169,3429.8,3429.7,5.4687204]
[1736980919770,0.7755,3430.6,3429.8,3.0]
[1736980919930,0.169,3430.5,3430.0,1.2245001]
[1736980920330,0.169,3430.5,3430.1,0.06471394]
[1736980922773,0.169,3430.5,3430.2,1.2245001]
[1736980923148,0.169,3430.5,3430.3,0.06456687]
[1736980925937,0.7755,3430.6,3430.4,1.2245001]
[1736980926138,0.169,3430.5,3430.3,0.06456687]
[1736980926339,0.169,3430.5,3430.2,1.2245001]
[1736980926579,0.169,3430.4,3430.2,1.2245001]
[1736980928673,0.169,3430.4,3430.2,1.63848511]
[1736980928883,0.169,3430.4,3430.3,0.06445321]
[1736980929889,0.7755,3430.6,3430.3,0.06445321]
[1736980930093,0.169,3430.5,3430.3,0.06445321]
[1736980932789,0.169,3430.4,3430.3,0.06445321]
[1736980932987,0.169,3430.4,3430.3,0.52628204]
[1736980933195,0.169,3430.4,3430.3,3.44147204]
[1736980934291,0.169,3430.4,3430.3,0.52628204]
[1736980936999,0.169,3430.4,3430.3,0.06445321]
[1736980937160,0.169,3430.4,3429.8,2.9156]
[1736980937505,0.169,3430.4,3429.9,0.06471368]
[1736980938175,0.169,3430.4,3429.9,2.98022368]
[1736980942444,0.169,3430.4,3429.9,0.06471368]
[1736980942642,0.169,3430.4,3429.7,4.9063801]
[1736980942799,0.169,3430.4,3430.0,0.06464856]
[1736980943139,0.169,3430.4,3429.8,0.49063801]
[1736980943297,0.169,3430.4,3430.1,0.0646087]
[1736980943494,0.169,3430.4,3429.8,0.49063801]
[1736980943693,0.169,3430.4,3430.2,0.06454359]
[1736980943939,0.169,3430.4,3429.8,2.91558]
[1736980944122,0.169,3430.4,3430.3,0.06447847]
[1736980944328,0.169,3430.4,3429.8,2.91558]
[1736980944490,0.169,3430.4,3430.3,0.06447847]
[1736980944690,0.169,3430.4,3429.8,2.91558]
[1736980944896,0.169,3430.4,3430.3,0.06447847]
[1736980945191,0.169,3430.4,3429.8,2.91558]
[1736980945395,0.169,3430.4,3429.9,0.49062801]
[1736980945711,0.169,3430.4,3430.0,0.06467383]
[1736980946132,0.169,3430.4,3429.9,0.49062801]
[1736980946333,0.169,3430.4,3430.1,0.0646087]
[1736980946502,0.169,3430.4,3430.0,0.06467383]
[1736980946705,0.169,3430.4,3430.0,1.70006452]
[1736980946919,0.169,3430.4,3430.1,0.0646087]
[1736980948673,0.169,3430.4,3430.2,1.2245001]
[1736980948878,0.169,3430.4,3430.2,1.28904369]
[1736980951969,0.169,3430.4,3430.2,2.05684369]
[1736980952157,0.169,3430.4,3430.3,0.49721937]
[1736980952654,0.169,3430.4,3430.3,0.56169784]
[1736980957684,0.7687,3430.8,3430.3,0.56169784]
[1736980957914,0.169,3430.7,3430.3,0.06447847]
[1736980961344,0.7687,3430.8,3430.3,0.06447847]
[1736980961502,0.169,3430.6,3430.3,0.06447847]
[1736980962432,0.169,3430.6,3430.4,1.2245001]
[1736980962806,0.169,3430.6,3430.4,1.28671272]
[1736980967349,0.55,3430.5,3430.4,1.28671272]
[1736980971887,0.55,3430.5,3430.4,0.06221262]
[1736980972067,0.55,3430.5,3430.2,4.1397801]
[1736980972273,0.55,3430.5,3430.4,0.06204427]
[1736980972459,0.55,3430.5,3430.2,4.63053811]
[1736980972978,0.55,3430.5,3430.3,0.06210938]
[1736980982803,0.719,3430.4,3430.3,0.06210938]
[1736980987594,0.169,3430.4,3430.3,0.06210938]
[1736980996040,0.719,3430.4,3430.3,0.06210938]
[1736980998505,0.719,3430.4,3430.3,0.55908533]
[1736981004751,0.55,3430.4,3430.3,0.55908533]
[1736981004914,0.718,3430.4,3430.3,0.55908533]
[1736981010577,0.718,3430.4,3430.3,1.37218533]
[1736981018677,0.718,3430.4,3430.3,0.55908533]
[1736981020294,0.168,3430.4,3430.3,0.55908533]
[1736981020596,0.168,3430.4,3430.3,1.28660948]
[1736981027777,0.168,3430.4,3430.3,0.06210938]
[1736981028013,0.168,3430.4,3430.3,1.28660948]
[1736981040324,0.168,3430.4,3430.3,0.06210938]
[1736981043223,0.168,3430.4,3430.1,3.0]
[1736981043415,0.168,3430.4,3430.3,0.05815927]
[1736981043722,0.168,3430.4,3430.2,0.05822438]
[1736981043908,0.168,3430.4,3430.3,0.05815927]
[1736981044249,0.168,3430.4,3430.1,2.91534]
[1736981044387,0.168,3430.4,3430.3,0.05815927]
[1736981044587,0.168,3430.4,3430.1,2.91534]
[1736981044826,0.168,3430.4,3430.2,0.05822438]
[1736981045226,0.168,3430.4,3430.1,2.91534]
[1736981045427,0.168,3430.4,3430.3,0.05815927]
[1736981045601,0.168,3430.4,3430.2,0.05822438]
[1736981045800,0.168,3430.4,3430.1,2.91534]
[1736981046031,0.168,3430.4,3430.2,0.05822438]
[1736981046369,0.168,3430.4,3430.1,2.91534]
[1736981046532,0.168,3430.4,3430.1,4.12793616]
[1736981046693,0.168,3430.4,3430.2,0.05822438]
[1736981046888,0.168,3430.4,3430.1,4.12793616]
[1736981047238,0.168,3430.4,3430.2,0.05822438]
[1736981047642,0.168,3430.4,3430.1,4.12793616]
[1736981047811,0.168,3430.4,3430.3,0.05815927]
[1736981048136,0.168,3430.4,3430.2,0.05822438]
[1736981048439,0.168,3430.4,3430.3,0.05815927]
[1736981048810,0.168,3430.4,3430.1,4.12793616]
[1736981049006,0.168,3430.4,3430.3,0.05815927]
[1736981049643,0.168,3430.4,3430.1,4.12793616]
[1736981049945,0.168,3430.4,3430.3,0.05815927]
[1736981050152,0.168,3430.4,3430.2,0.05822438]
[1736981050356,0.168,3430.4,3430.3,0.05815927]
[1736981050558,0.168,3430.4,3430.1,4.12793616]
[1736981050739,0.168,3430.4,3430.2,0.97249801]
[1736981052019,0.168,3430.3,3430.2,0.97249801]
[1736981068984,0.168,3430.3,3430.2,1.75539801]
[1736981069578,0.168,3430.3,3430.2,2.97989811]
[1736981073331,0.55,3430.8,3430.2,2.97989811]
[1736981073486,0.168,3430.3,3430.2,2.06562448]
[1736981075218,0.168,3430.3,3430.2,4.98090448]
[1736981075597,0.168,3430.3,3430.2,7.98090448]
[1736981077888,0.168,3430.3,3430.2,6.75640438]
[1736981080851,0.718,3430.3,3430.2,6.75640438]
[1736981081005,0.718,3430.3,3430.2,7.67575444]
[1736981091485,0.718,3430.3,3430.2,6.89285444]
[1736981091650,0.718,3430.3,3430.2,5.97350438]
[1736981101170,0.168,3430.3,3430.2,5.97350438]
[1736981101484,0.168,3430.3,3430.2,7.19800448]
[1736981101645,0.718,3430.3,3430.2,8.00630448]
[1736981103248,0.718,3430.3,3430.2,8.71679925]
[1736981103547,0.718,3430.3,3430.2,9.88002517]
[1736981104388,0.718,3430.3,3430.2,9.44279762]
[1736981116470,0.718,3430.3,3430.2,9.1695304]
[1736981118417,0.168,3430.3,3430.2,7.9450303]
[1736981124414,0.7841,3430.9,3430.3,5.91514]
[1736981124622,0.168,3430.8,3430.4,0.05801419]
[1736981127182,0.168,3430.8,3430.2,6.72357]
[1736981127397,0.168,3430.8,3430.3,0.0580793]
[1736981128109,0.7705,3430.7,3430.3,0.0580793]
[1736981128288,0.7705,3430.5,3430.3,0.0580793]
[1736981128487,0.7705,3430.5,3430.0,3.0]
[1736981128689,0.7705,3430.5,3430.4,0.05800579]
[1736981128892,0.7705,3430.5,3430.0,3.0]
[1736981129120,0.7705,3430.5,3430.4,0.05800579]
[1736981129325,0.7705,3430.5,3430.1,1.2245001]
[1736981129488,0.7705,3430.5,3430.4,0.05800579]
[1736981129688,0.7705,3430.5,3430.1,1.2245001]
[1736981129887,0.7705,3430.5,3430.4,0.05798896]
[1736981130126,0.7705,3430.5,3430.1,1.2245001]
[1736981130332,0.7705,3430.5,3430.4,0.05798475]
[1736981130502,0.7705,3430.5,3430.1,1.2245001]
[1736981130828,3.08278,3430.8,3430.0,3.0]
[1736981130829,0.7705,3430.3,3430.0,3.0]
[1736981131683,1.3205,3430.1,3430.0,3.0]
[1736981132083,4.23586,3430.1,3430.0,3.0]
[1736981137840,9.54586,3430.1,3430.0,3.0]
[1736981138013,10.12867599,3430.1,3430.0,3.0]
[1736981146257,10.29667599,3430.1,3430.0,3.0]
[1736981146750,8.99586,3430.1,3430.0,3.0]
[1736981146954,9.16386,3430.1,3430.0,3.0]
[1736981147157,8.94336,3430.1,3430.0,3.0]
[1736981147311,8.39336,3430.1,3430.0,3.0]
[1736981147951,8.77536,3430.1,3430.0,3.0]
[1736981148156,8.94336,3430.1,3430.0,3.0]
[1736981149656,3.63336,3430.1,3430.0,3.0]
[1736981152934,3.08336,3430.1,3430.0,3.0]
[1736981159578,3.90116,3430.1,3430.0,3.0]
[1736981163161,4.35798194,3430.1,3430.0,3.0]
[1736981167386,4.35798194,3430.1,3430.0,2.9139]
[1736981168309,4.35798194,3430.1,3430.0,2.96932704]
[1736981168502,3.90116,3430.1,3430.0,2.96932704]
[1736981170033,3.08336,3430.1,3430.0,2.96932704]
[1736981173817,0.168,3430.1,3430.0,2.96932704]
[1736981174436,0.168,3430.1,3430.0,2.9139]
[1736981174840,0.168,3430.1,3430.0,2.96940283]
[1736981182807,3.08336,3430.1,3430.0,2.96940283]
[1736981184975,3.08336,3430.1,3430.0,2.9139]
[1736981185370,3.08336,3430.1,3430.0,2.9674917]
[1736981187307,3.649365,3430.1,3430.0,2.9674917]
[1736981187796,3.481365,3430.1,3430.0,2.9674917]
[1736981188015,3.649365,3430.1,3430.0,2.9674917]
[1736981193745,3.481365,3430.1,3430.0,2.9674917]
[1736981194042,3.649365,3430.1,3430.0,2.9674917]
[1736981196247,0.4568231,3430.5,3430.1,0.824]
[1736981196433,0.58240475,3432.0,3431.8,0.4363]
[1736981196802,0.168,3432.2,3431.8,1.71331705]
[1736981196963,0.168,3432.2,3431.8,4.85679173]
[1736981197109,1.3946,3433.5,3431.8,4.85679173]
[1736981197317,0.168,3432.3,3431.8,6.08129183]
[1736981197511,0.168,3432.4,3432.3,2.91349]
[1736981197732,0.168,3432.5,3432.4,3.61701]
[1736981197911,0.168,3432.6,3432.5,3.61692]
[1736981198118,0.168,3432.6,3432.5,5.38187357]
[1736981198542,0.625,3433.5,3433.0,0.7036]
[1736981198860,0.168,3433.4,3433.1,0.05077519]
[1736981199359,0.168,3433.3,3433.1,0.05077519]
[1736981199652,0.168,3433.3,3433.2,0.36672452]
[1736981200059,0.168,3433.3,3433.2,0.41717821]
[1736981200766,0.168,3433.3,3433.2,0.05045369]
[1736981202056,0.625,3433.5,3433.2,0.05045369]
[1736981202255,0.168,3433.4,3433.2,0.05045369]
[1736981202637,0.168,3433.4,3433.0,0.7036]
[1736981203159,0.168,3433.4,3433.1,0.04902528]
[1736981203383,0.168,3433.4,3433.2,0.64448453]
[1736981203827,0.168,3433.4,3433.3,0.04889528]
[1736981204559,0.168,3433.4,3433.2,0.64448453]
[1736981205071,0.168,3433.4,3433.3,0.04875238]
[1736981205372,0.168,3433.4,3433.2,0.64448453]
[1736981205582,0.168,3433.4,3433.3,0.47483623]
[1736981210483,0.168,3433.4,3433.3,0.04873978]
[1736981210783,0.168,3433.4,3433.2,0.64448453]
[1736981210980,0.168,3433.4,3433.1,3.53776]
[1736981210981,0.168,3433.4,3433.3,0.04847501]
[1736981211385,0.168,3433.4,3433.1,2.91276]
[1736981211569,0.168,3433.4,3433.3,0.04847501]
[1736981211889,0.168,3433.4,3433.2,0.04854001]
[1736981212099,0.168,3433.4,3433.3,0.04847501]
[1736981212451,0.168,3433.4,3433.0,3.61644]
[1736981212798,0.625,3433.5,3432.5,6.18176719]
[1736981212799,0.172,3433.3,3433.2,2.91273]
[1736981213092,0.625,3433.5,3433.2,3.68303]
[1736981213267,0.625,3433.5,3433.4,2.91256]
[1736981213462,0.797,3433.5,3433.4,2.91256]
[1736981213791,0.797,3433.5,3433.4,4.03464129]
[1736981213962,0.625,3433.5,3433.4,4.03464129]
[1736981214161,0.797,3433.5,3433.4,4.03464129]
[1736981214367,0.797,3433.5,3433.4,4.80494129]
[1736981215387,0.797,3433.5,3433.4,5.07329276]
[1736981216776,0.797,3433.5,3433.4,0.6898583]
[1736981218307,0.797,3433.5,3433.4,0.37312623]
[1736981219181,6.44510004,3433.9,3433.5,2.203]
[1736981219380,0.172,3433.8,3433.5,2.203]
[1736981219583,0.172,3433.8,3433.6,0.04779828]
[1736981219778,0.172,3433.8,3433.5,2.203]
[1736981220189,3.66601,3433.7,3433.6,0.04730342]
[1736981220514,3.66601,3433.7,3433.5,2.203]
[1736981220683,2.91239,3433.6,3433.5,2.203]
[1736981221176,6.44533004,3433.6,3433.5,2.203]
[1736981222018,9.99533004,3433.6,3433.5,2.203]
[1736981222314,9.99533004,3433.6,3433.5,5.9e-07]
[1736981222469,0.7537,3432.6,3432.5,0.26835147]
[1736981222672,3.83894,3432.6,3432.5,0.04832169]
[1736981222912,3.83894,3432.6,3432.3,0.26835147]
[1736981224193,3.83894,3432.6,3432.2,0.31372249]
[1736981224618,3.83894,3432.6,3432.3,0.04848352]
[1736981224977,3.83894,3432.6,3432.2,0.31372249]
[1736981225315,3.83894,3432.6,3432.4,0.27063775]
[1736981226173,0.172,3432.5,3432.2,0.31372249]
[1736981226391,0.172,3432.5,3432.3,0.04872266]
[1736981226836,0.172,3432.5,3432.2,0.31372249]
[1736981226993,0.172,3432.5,3432.4,0.04880136]
[1736981227170,0.172,3432.5,3432.3,0.04919333]
[1736981227375,0.172,3432.5,3432.2,0.31372249]
[1736981227682,0.172,3432.5,3432.4,0.2719201]
[1736981228000,0.172,3432.5,3432.4,0.3210484]
[1736981228819,2.91303,3432.9,3432.4,0.3210484]
[1736981229021,0.172,3432.5,3432.4,0.3210484]
[1736981229176,0.172,3432.5,3432.4,0.2719201]
[1736981229380,0.172,3432.5,3432.4,0.3210484]
[1736981231303,5.77924004,3433.6,3432.5,0.781]
[1736981231304,2.91265,3433.3,3432.5,0.781]
[1736981231499,0.172,3433.2,3432.5,0.781]
[1736981231729,0.172,3433.2,3432.6,0.04899824]
[1736981232335,3.08481,3433.2,3432.4,0.2719201]
[1736981232536,0.172,3433.2,3432.5,0.04851066]
[1736981232746,2.91282,3433.1,3432.5,0.04851066]
[1736981233046,0.7501,3433.0,3432.6,0.2719201]
[1736981233251,0.9221,3433.0,3432.6,0.2719201]
[1736981233449,0.9221,3433.0,3432.7,0.04893322]
[1736981234156,0.9221,3433.0,3432.8,0.2719201]
[1736981234908,0.9221,3433.0,3432.2,1.09472249]
[1736981235149,0.59117377,3433.4,3432.3,0.04919333]
[1736981235349,3.08466,3433.3,3432.3,3.04919333]
[1736981235554,0.172,3433.3,3432.3,0.04919333]
[1736981235854,0.172,3433.3,3432.4,0.781]
[1736981236252,0.172,3433.3,3432.5,0.04906327]
[1736981236748,0.172,3433.3,3432.5,3.04906327]
[1736981236950,0.172,3433.3,3432.6,0.67434733]
[1736981237111,0.172,3433.3,3432.7,0.04893322]
[1736981239613,0.169,3433.2,3432.7,0.04893322]
[1736981240017,0.169,3433.1,3432.7,0.04893322]
[1736981240645,2.9125,3433.5,3432.7,0.04893322]
[1736981240910,0.7823,3433.7,3432.8,0.7804]
[1736981241111,6.47361004,3434.0,3432.9,0.04868548]
[1736981241317,0.169,3433.9,3433.0,0.7804]
[1736981241642,0.169,3433.9,3433.1,0.04855546]
[1736981242462,0.169,3433.9,3433.2,0.7804]
[1736981242814,0.169,3433.9,3433.3,0.04866077]
[1736981244057,0.7823,3433.7,3433.3,0.04866077]
[1736981244615,0.7823,3433.7,3432.9,0.7804]
[1736981244854,0.7823,3433.7,3433.4,0.04859577]
[1736981245056,0.7823,3433.7,3432.9,0.7804]
[1736981245453,0.7823,3433.7,3433.0,0.04882636]
[1736981250159,3.69461,3433.7,3433.0,0.04882636]
[1736981251824,3.08115,3433.9,3433.0,0.04882636]
[1736981252523,0.169,3433.9,3433.0,0.04882636]
[1736981252724,2.91226,3433.8,3433.0,0.04882636]
[1736981254568,2.91226,3433.8,3433.1,0.7804]
[1736981254722,0.169,3433.7,3433.2,0.04854928]
[1736981254922,0.169,3433.6,3433.3,0.7804]
[1736981255258,0.169,3433.6,3433.4,0.04841928]
[1736981255570,0.169,3433.6,3433.3,0.7804]
[1736981255800,0.169,3433.6,3433.4,0.04841928]
[1736981255966,0.169,3433.6,3433.3,0.7804]
[1736981256154,0.169,3433.6,3433.4,0.04841928]
[1736981256355,0.169,3433.5,3433.3,0.7804]
[1736981256663,0.169,3433.5,3433.4,0.04841928]
[1736981257053,0.169,3433.5,3433.3,0.7804]
[1736981257399,0.169,3433.5,3433.4,0.04841928]
[1736981257601,0.169,3433.5,3433.3,0.7804]
[1736981257894,0.169,3433.5,3433.4,0.04841928]
[1736981258266,0.169,3433.5,3433.3,0.7804]
[1736981258496,0.169,3433.5,3433.4,0.04841928]
[1736981258798,0.169,3433.5,3433.3,0.7804]
[1736981258955,0.169,3433.5,3433.4,0.04841928]
[1736981259155,0.169,3433.5,3433.3,0.7804]
[1736981259393,0.169,3433.5,3433.4,0.04841928]
[1736981259695,0.169,3433.5,3433.3,0.7804]
[1736981259897,0.169,3433.4,3433.3,0.7804]
[1736981260067,0.169,3433.4,3433.3,0.36932]
[1736981260702,2.91201,3434.1,3433.3,1.12672]
[1736981261011,0.169,3433.4,3433.3,1.12672]
[1736981270493,0.169,3433.4,3433.3,0.7574]
[1736981272794,0.169,3433.4,3433.3,3.67004]
[1736981273718,0.169,3433.4,3433.3,4.22004]
[1736981273922,0.169,3433.4,3433.3,4.26830154]
[1736981275538,3.36814332,3434.2,3433.4,0.55]
[1736981275739,0.167,3434.1,3433.5,0.04813155]
[1736981281653,0.167,3434.1,3433.6,0.55]
[1736981282023,0.167,3434.1,3433.7,0.04791758]
[1736981283010,0.167,3434.1,3433.3,0.7574]
[1736981283238,0.167,3434.1,3433.4,0.59811255]
[1736981300259,0.167,3434.0,3433.8,0.55]
[1736981300458,0.167,3434.0,3433.9,1.3365]
[1736981300616,0.167,3434.0,3433.9,1.38368271]
[1736981305619,0.45626332,3434.2,3434.0,0.55]
[1736981305816,0.167,3434.1,3434.0,0.55]
[1736981306656,0.167,3434.1,3433.4,1.3348]
[1736981311166,3.07897,3434.1,3433.4,1.3348]
[1736981311895,0.167,3434.0,3433.4,1.3348]
[1736981312989,3.36816332,3434.2,3433.4,1.3348]
[1736981313195,0.167,3434.1,3433.4,1.3348]
[1736981314400,0.766,3434.0,3433.4,1.3348]
[1736981314990,0.167,3434.1,3433.4,1.3348]
[1736981315197,3.07897,3434.1,3433.4,1.3348]
[1736981316416,0.167,3434.1,3433.4,1.3348]
[1736981318630,0.167,3434.1,3433.4,4.24735]
[1736981318801,0.167,3434.1,3433.6,0.55]
[1736981319329,0.167,3434.1,3433.7,0.04736727]
[1736981319719,0.167,3434.1,3433.4,0.7848]
[1736981319913,0.167,3434.1,3433.9,0.55]
[1736981320115,0.167,3434.1,3433.5,0.55]
[1736981320502,0.167,3434.1,3433.6,0.04743225]
[1736981323143,0.167,3434.1,3433.4,0.7848]
[1736981323299,0.167,3434.1,3433.7,0.04736727]
[1736981323500,0.167,3434.1,3433.4,0.7848]
[1736981323731,0.167,3434.1,3433.8,0.04730229]
[1736981323933,0.167,3434.1,3433.4,0.7848]
[1736981324139,0.167,3434.1,3433.9,0.04723731]
[1736981324345,0.167,3434.1,3433.4,0.7848]
[1736981324761,0.167,3434.1,3433.5,0.04749724]
[1736981328146,0.7975,3434.0,3433.5,0.04749724]
[1736981329057,0.7975,3434.0,3433.2,0.7651]
[1736981329296,3.70958,3434.0,3433.6,0.04744905]
[1736981329583,3.70958,3434.0,3433.7,0.04738407]
[1736981329742,3.70958,3434.0,3433.2,0.7651]
[1736981329942,3.70958,3434.0,3433.3,0.04764403]
[1736981330669,2.91214,3433.9,3433.3,0.04764403]
[1736981333526,0.45628945,3433.8,3433.3,0.04764403]
[1736981333829,0.45628945,3433.8,3433.2,0.7651]
[1736981333993,0.45628945,3433.8,3433.4,0.04619367]
[1736981334323,0.45628945,3433.8,3433.2,0.7651]
[1736981334493,0.45628945,3433.8,3433.5,0.04612868]
[1736981334692,0.45628945,3433.8,3433.2,0.7651]
[1736981334887,0.45628945,3433.8,3433.6,0.04606369]
[1736981335095,0.45628945,3433.8,3433.2,0.7651]
[1736981335294,0.45628945,3433.8,3433.7,0.0460239]
[1736981335791,0.45628945,3433.8,3433.2,0.7651]
[1736981335999,0.45628945,3433.8,3433.7,0.0460239]
[1736981336190,0.45628945,3433.8,3433.2,0.7651]
[1736981336381,0.45628945,3433.8,3433.7,0.0460239]
[1736981336718,0.62328945,3433.8,3433.2,0.7651]
[1736981336917,0.62328945,3433.8,3433.7,0.0460239]
[1736981337434,0.62328945,3433.8,3433.2,0.7651]
[1736981337600,0.62328945,3433.8,3433.7,0.0460239]
[1736981338131,0.62328945,3433.8,3433.2,0.7651]
[1736981338334,0.62328945,3433.8,3433.7,0.0460239]
[1736981338492,0.62328945,3433.8,3433.2,0.7651]
[1736981339033,0.62328945,3433.8,3433.3,0.04628387]
[1736981339202,0.62328945,3433.8,3433.2,0.7651]
[1736981339402,0.62328945,3433.8,3433.4,0.04621887]
[1736981339748,0.62328945,3433.8,3433.2,0.7651]
[1736981339890,0.62328945,3433.8,3433.5,0.04615388]
[1736981340089,0.62328945,3433.8,3433.2,0.7651]
[1736981340336,0.62328945,3433.8,3433.6,0.04608889]
[1736981340533,0.62328945,3433.8,3433.2,0.7651]
[1736981340719,0.62328945,3433.8,3433.7,0.0460911]
[1736981340919,0.62328945,3433.8,3433.2,0.7651]
[1736981341144,0.62328945,3433.8,3433.7,0.0460911]
[1736981341639,0.62328945,3433.8,3433.2,0.7651]
[1736981341841,0.62328945,3433.8,3433.7,0.0460911]
[1736981342038,0.7614,3433.7,3433.1,1.165824]
[1736981342351,0.7614,3433.7,3432.5,3.31369507]
[1736981342493,0.7614,3433.2,3432.5,1.3252489]
[1736981342700,0.7614,3433.2,3432.6,1.165966]
[1736981344337,0.7614,3433.2,3432.5,0.31369507]
[1736981344993,0.7614,3433.2,3432.5,1.53561084]
[1736981345239,0.7614,3433.2,3432.6,0.7512]
[1736981348762,0.7552849,3433.2,3432.6,0.7512]
[1736981348960,0.7552849,3433.2,3432.7,0.03839365]
[1736981353080,0.7552849,3433.2,3432.5,1.53561084]
[1736981353249,3.6680249,3433.2,3432.5,1.53561084]
[1736981353434,3.6680249,3433.2,3432.6,0.03873988]
[1736981356086,2.91282,3433.1,3432.6,0.03873988]
[1736981356388,0.7614,3433.0,3432.6,0.03873988]
[1736981358061,3.67431,3433.0,3432.6,0.03873988]
[1736981365717,0.7614,3433.0,3432.6,0.03873988]
[1736981365913,0.7614,3433.0,3432.6,0.81333988]
[1736981373137,0.7614,3433.0,3432.6,0.03873988]
[1736981377560,0.7614,3433.0,3432.6,0.27363495]
[1736981377729,0.167,3432.9,3432.6,1.49555072]
[1736981378645,0.167,3432.9,3432.6,1.26065565]
[1736981385350,0.167,3432.9,3432.6,0.03873988]
[1736981386554,0.754,3432.8,3432.6,0.03873988]
[1736981388150,0.167,3432.7,3432.6,2.03665565]
[1736981389656,0.167,3432.7,3432.6,0.81473988]
[1736981389856,0.167,3432.7,3432.6,0.03873988]
[1736981404241,0.9559,3432.7,3432.6,0.03873988]
[1736981407568,0.167,3432.7,3432.6,0.03873988]
[1736981432370,0.167,3432.7,3432.6,0.0662562]
[1736981447269,3.67604,3433.1,3432.6,0.0662562]
[1736981447475,0.167,3432.7,3432.6,0.0662562]
[1736981447978,0.152143,3432.7,3432.6,0.0662562]
[1736981458370,0.167,3432.7,3432.6,0.0662562]
[1736981458575,0.167,3432.7,3432.6,0.3093529]
[1736981459144,0.167,3432.7,3432.6,0.0662562]
[1736981462075,3.88385,3432.7,3432.6,0.0662562]
[1736981462574,0.9707,3432.7,3432.5,0.31369507]
[1736981462775,2.91324,3432.6,3432.5,0.31369507]
[1736981463087,0.8037,3432.3,3431.6,0.8116]
[1736981463286,2.91359,3432.2,3431.7,1.22191577]
[1736981463439,2.91359,3432.2,3431.7,1.08500448]
[1736981463649,2.91359,3432.2,3431.3,0.8116]
[1736981463650,2.91381,3432.0,3431.3,0.8116]
[1736981463853,0.8037,3431.9,3431.3,0.8116]
[1736981464057,0.167,3431.8,3431.3,0.8116]
[1736981464279,0.167,3431.8,3431.1,3.0]
[1736981464452,0.167,3431.8,3431.2,1.22191577]
[1736981465369,3.08097,3431.8,3431.2,1.22191577]
[1736981466092,2.91401,3431.7,3431.2,1.22191577]
[1736981466792,2.91401,3431.7,3431.0,2.03351577]
[1736981467001,2.91401,3431.7,3431.0,3.06735135]
[1736981468997,2.91401,3431.7,3431.1,0.05530287]
[1736981469959,0.8037,3431.6,3431.1,0.05530287]
[1736981473480,0.8037,3431.6,3430.9,1.22191577]
[1736981473791,0.8037,3431.6,3431.2,0.8116]
[1736981474289,0.8037,3431.6,3431.3,0.0552336]
[1736981474608,0.8037,3431.6,3430.9,2.03351577]
[1736981474791,0.8037,3431.6,3431.0,0.05543204]
[1736981476415,3.71779,3431.6,3431.0,0.05543204]
[1736981476910,3.71779,3431.6,3430.8,1.22191577]
[1736981477111,3.71779,3431.6,3431.1,0.05391671]
[1736981477413,3.71779,3431.6,3431.2,0.05385056]
[1736981477603,3.71779,3431.6,3430.8,1.22191577]